Workbook

Sheet LEGGIMI
B31: NB: le celle sono protette per evitare cancellazioni accidentali e/o modifiche
B32: involontarie, se per errore vengono cancellate e/o modificate le formule nelle
B33: celle, il programma non funzionerebbe più correttamente.
B35: Per aggiungere, migliorare e/o modificare le formule esistenti, togliere la protezione alle celle:
B36: Posizionarsi con il mouse su "strumenti" - "protezione" - "rimuovi protezione dal foglio".
B37: Non è inserita nessuna password, quindi è facile sproteggere il foglio ed apportarvi modifiche.
B38: Per maggior sicurezza, dopo la modifica, reinserire la protezione nel foglio modificato.
B40: PS: Questo elementare programma, può servire per imparare ad inserire: Word Art, Etrichette,
B41: Semplici disegni, Formule nelle celle, Collegamenti ipertestuali ecc. ecc. - BUON LAVORO
B42: e-mail: vigma53@gmail.com

Sheet SCELTA

Sheet Cerchio
D4: FIGURE PIANE
C6: Raggio
B9: Diametro
B15: CERCHIO | F15: Inserisci il RAGGIO | H15: 25 | I15: AREA = | K15: =H15*H15*3.14 -> 1962.5
B17: L'AREA è uguale a RAGGIO*RAGGIO*p(Pigreco=3,14)
B24: CIRCONFERENZA | F24: Inserisci il RAGGIO | H24: 25 | I24: PERIMETRO = | K24: =H24*6.28 -> 157
B26: Il PERIMETRO è uguale a RAGGIO*2p(Pigreco=3,14)

Sheet Quadrato
E4: FIGURE PIANE
D6: Lato
C9: Lato
C15: QUADRATO | G15: Inserisci il LATO | I15: 25 | J15: AREA = | L15: =I15*I15 -> 625
C17: L'AREA è uguale a LATO*LATO
C19: Il LATO è uguale alla √AREA (radice quadrata dell'Area) | I19: =SQRT(L15) -> 25
C21: La DIAGONALE è uguale alla √AREAx2 | I21: =SQRT(L15*2) -> 35.36
C26: QUADRATO | G26: Inserisci il LATO | I26: 25 | J26: PERIMETRO = | L26: =I26*4 -> 100
C28: Il PERIMETRO è uguale a LATO*4
C30: Il LATO è uguale al PERIMETRO/4 | I30: =L26/4 -> 25

Sheet Rettangolo
E4: FIGURE PIANE
D6: Altezza
C9: Base
G12: Inserisci la BASE | I12: 40
C13: RETTANGOLO | J13: AREA = | L13: =I12*I14 -> 400
G14: Inserisci l'ALTEZZA | I14: 10
C15: L'AREA è uguale alla BASE*ALTEZZA
C17: La BASE è uguale all'AREA/ALTEZZA | I17: =L13/I14 -> 40
C18: L'ALTEZZA è uguale all'AREA/BASE | I18: =L13/I12 -> 10
G21: Inserisci la BASE | I21: 40
C22: RETTANGOLO | J22: PERIMETRO = | L22: =(I21*2)+(I23*2) -> 100
G23: Inserisci l'ALTEZZA | I23: 10
C24: Il PERIMETRO è uguale alla (BASE+ALTEZZA)*2
C26: La BASE è uguale al PERIMETRO/2-ALTEZZA | I26: =L22/2-I23 -> 40
C27: L'ALTEZZA è uguale al PERIMETRO/2-BASE | I27: =L22/2-I21 -> 10

Sheet Rombo
E4: FIGURE PIANE
C5: Diagonale minore
E6: Altezza
B8: Lato
B11: Diagonale maggiore
G14: Inserisci la DIAGONALE min. | I14: 20
C15: ROMBO | J15: AREA = | L15: =I14*I16/2 -> 300
G16: Inserisci la DIAGONALE magg. | I16: 30
C18: L'AREA è uguale alla DIAGONALE minore*DIAGONALE maggiore/2
C20: La DIAGONALE minore è uguale 2*AREA/DIAGONALE maggiore | I20: =2*L15/I16 -> 20
C21: La DIAGONALE maggiore è uguale 2*AREA/DIAGONALE minore | I21: =2*L15/I14 -> 30
C24: ROMBO | G24: Inserisci il LATO | I24: 25 | J24: PERIMETRO = | L24: =I24*4 -> 100
C26: Il PERIMETRO è uguale al LATO*4
C28: Il LATO è uguale al PERIMETRO/4 | I28: =L24/4 -> 25
C29: l'ALTEZZA è uguale all'AREA/LATO | I29: =L15/I24 -> 12

Sheet Triangolo
E4: FIGURE PIANE
B6: Lato | D6: Altezza
C10: Base
G12: Inserisci la BASE | I12: 30
C13: TRIANGOLO EQUILATERO | J13: AREA = | L13: =(I12*I14)/2 -> 600
G14: Inserisci l'ALTEZZA | I14: 40
C16: L'AREA è uguale alla BASE*ALTEZZA/2
C18: L'ALTEZZA è uguale a 2*AREA/BASE | I18: =2*L13/I12 -> 40
C19: La BASE è uguale a 2*AREA/ALTEZZA | I19: =2*L13/I14 -> 30
C24: TRIANGOLO EQUILATERO | G24: Inserisci il LATO | I24: 45 | J24: PERIMETRO = | L24: =I24*3 -> 135
C27: Il PERIMETRO è uguale al LATO*3

Sheet Pentagono
F4: FIGURE PIANE
B5: Lato
D11: Apotema
C13: PENTAGONO REGOLARE | G13: Inserisci il LATO | I13: 20 | J13: PERIMETRO = | L13: =I13*5 -> 100
C15: Il PERIMETRO è uguale al LATO*5
C23: PENTAGONO REGOLARE | G23: APOTEMA = | I23: =I13*0.688 -> 13.76 | J23: AREA = | L23: =(L13*I23)/2 -> 688
C25: L'AREA è uguale al PERIMETRO*APOTEMA/2
C27: L'APOTEMA è uguale al LATO*0,688 (0,688 è un numero fisso)

Sheet Esagono
F4: FIGURE PIANE
D5: Lato
D11: Apotema
C13: ESAGONO REGOLARE | G13: APOTEMA = | I13: =I22*0.866 -> 21.65 | J13: AREA = | L13: =(L22*I13)/2 -> 1623.75
C16: L'APOTEMA è uguale al LATO*0,866 (0,866 è un numero fisso)
C18: L'AREA è uguale al PERIMETRO*APOTEMA/2
C22: ESAGONO REGOLARE | G22: Inserisci il LATO | I22: 25 | J22: PERIMETRO = | L22: =I22*6 -> 150
C25: Il PERIMETRO è uguale al LATO*6
